bitfinex-derivatives/quotes_BTCF0:USTF0_20250426
["timestamp","ask_amount","ask_price","bid_price","bid_amount"]
[1745671505918,0.5425,94324.0,94323.0,0.2119695]
[1745671506410,0.5425,94324.0,94323.0,0.2129695]
[1745671506614,0.5425,94324.0,94323.0,0.001]
[1745671507305,0.5425,94324.0,94323.0,0.2129695]
[1745671508214,0.5425,94324.0,94323.0,0.001]
[1745671509414,0.5425,94324.0,94323.0,0.2129695]
[1745671515920,0.5425,94324.0,94323.0,0.3946695]
[1745671516115,0.3745,94324.0,94323.0,0.3946695]
[1745671517123,0.3608,94325.0,94324.0,0.2119672]
[1745671517318,0.3608,94325.0,94324.0,0.5786672]
[1745671517513,0.1814,94335.0,94334.0,0.2119447]
[1745671518423,0.1814,94335.0,94334.0,0.5786447]
[1745671519324,0.5497,94335.0,94334.0,0.5786447]
[1745671520523,0.5517,94335.0,94334.0,0.5786447]
[1745671523724,0.7288,94335.0,94334.0,0.5786447]
[1745671524917,0.5442,94335.0,94334.0,0.5786447]
[1745671529833,0.1834,94335.0,94334.0,0.5786447]
[1745671530028,0.5442,94335.0,94334.0,0.5786447]
[1745671532726,0.1834,94335.0,94334.0,0.5786447]
[1745671532925,0.5442,94335.0,94334.0,0.5786447]
[1745671534323,0.5442,94335.0,94334.0,0.3918447]
[1745671539529,0.5442,94335.0,94334.0,0.2119447]
[1745671543436,0.1834,94335.0,94334.0,0.2119447]
[1745671543628,0.5442,94335.0,94334.0,0.2119447]
[1745671544736,0.5442,94335.0,94334.0,0.3881447]
[1745671545939,0.002,94335.0,94334.0,0.3881447]
[1745671546238,0.002,94335.0,94334.0,0.5561447]
[1745671546441,0.002,94335.0,94334.0,0.6621487]
[1745671546638,0.1867,94344.0,94343.0,0.2119245]
[1745671547034,0.1867,94344.0,94343.0,0.3799245]
[1745671547435,0.1867,94344.0,94343.0,0.7493245]
[1745671548342,0.1897,94344.0,94343.0,0.7493245]
[1745671551145,0.1897,94344.0,94343.0,0.5813245]
[1745671552946,0.1867,94344.0,94343.0,0.5813245]
[1745671553146,0.1877,94344.0,94343.0,0.5813245]
[1745671554146,0.1877,94344.0,94343.0,0.9915245]
[1745671557444,0.001,94344.0,94343.0,0.9915245]
[1745671558341,0.001,94344.0,94343.0,1.1595245]
[1745671566853,0.0013,94361.0,94360.0,0.2118863]
[1745671567851,0.02531245,94361.0,94360.0,0.2118863]
[1745671568252,0.02531245,94361.0,94360.0,0.3896863]
[1745671568746,0.03031245,94361.0,94360.0,0.3896863]
[1745671570846,0.21051245,94361.0,94360.0,0.3896863]
[1745671571747,0.21051245,94361.0,94360.0,0.7998863]
[1745671573951,0.03031245,94361.0,94360.0,0.7998863]
[1745671576556,0.21161245,94361.0,94360.0,0.7998863]
[1745671582364,0.21161245,94361.0,94360.0,0.6220863]
[1745671589365,0.21161245,94361.0,94360.0,0.8025863]
[1745671590361,0.21161245,94361.0,94360.0,0.6220863]
[1745671590667,0.21161245,94361.0,94360.0,0.4102]
[1745671591161,0.37961245,94361.0,94360.0,0.4102]
[1745671591366,0.84638845,94361.0,94341.0,0.00158995]
[1745671591562,0.06615027,94355.0,94341.0,0.00158995]
[1745671591759,0.3608,94346.0,94341.0,0.00158995]
[1745671591955,0.3715,94345.0,94341.0,0.00158995]
[1745671593066,0.5395,94345.0,94341.0,0.00158995]
[1745671593479,0.5405,94345.0,94341.0,0.00158995]
[1745671598659,0.5405,94345.0,94330.0,0.06615027]
[1745671598869,0.3608,94335.0,94330.0,0.27810347]
[1745671599064,0.3565,94334.0,94330.0,0.2119532]
[1745671599260,0.5377,94334.0,94330.0,0.2119532]
[1745671599459,0.5377,94334.0,94331.0,0.2119503]
[1745671600062,0.7057,94334.0,94331.0,0.2119503]
[1745671600567,0.7057,94334.0,94333.0,0.211947]
[1745671602665,0.7057,94334.0,94333.0,0.212947]
[1745671604071,0.7057,94334.0,94333.0,0.001]
[1745671604685,0.7057,94334.0,94333.0,0.212947]
[1745671607080,0.7057,94334.0,94333.0,0.001]
[1745671608270,0.7057,94334.0,94333.0,0.212947]
[1745671611477,0.7057,94334.0,94333.0,0.001]
[1745671612074,1.0665,94334.0,94333.0,0.001]
[1745671613481,1.0665,94334.0,94333.0,0.212947]
[1745671614586,1.0665,94334.0,94333.0,0.001]
[1745671616776,1.172508,94334.0,94320.0,0.4062751]
[1745671616978,0.3608,94326.0,94321.0,0.2119732]
[1745671617179,0.3593,94325.0,94321.0,0.2119732]
[1745671617579,0.1861,94324.0,94321.0,0.2119732]
[1745671618085,0.3593,94323.0,94320.0,0.1863]
[1745671618284,0.3593,94323.0,94321.0,0.2119738]
[1745671619089,0.5273,94323.0,94322.0,0.2119717]
[1745671619793,0.53527501,94323.0,94322.0,0.2119717]
[1745671620090,0.53527501,94323.0,94322.0,0.4006717]
[1745671620389,0.53527501,94323.0,94322.0,0.4026717]
[1745671621089,0.55684697,94323.0,94322.0,0.4026717]
[1745671625586,0.55684697,94323.0,94322.0,0.5922717]
[1745671632994,0.55684697,94323.0,94322.0,0.5912717]
[1745671637795,0.55684697,94323.0,94322.0,0.4016717]
[1745671641406,0.55684697,94323.0,94310.0,0.3608]
[1745671641605,0.3608,94317.0,94311.0,0.1884]
[1745671641806,0.1828,94316.0,94311.0,0.1884]
[1745671642100,0.3636,94316.0,94313.0,0.2119902]
[1745671642404,0.1819,94315.0,94311.0,0.241399]
[1745671642702,0.1819,94315.0,94311.0,0.4533943]
[1745671643009,0.1819,94315.0,94311.0,0.1914]
[1745671643196,0.3499,94315.0,94314.0,0.2119897]
[1745671643395,0.3499,94315.0,94311.0,0.2443989]
[1745671643603,0.3499,94315.0,94314.0,0.2119897]
[1745671644906,0.3499,94315.0,94311.0,0.001]
[1745671645106,0.3499,94315.0,94314.0,0.2119897]
[1745671645608,0.3509,94315.0,94314.0,0.2119897]
[1745671646108,0.3499,94315.0,94314.0,0.2119897]
[1745671646302,0.3519,94315.0,94314.0,0.2119897]
[1745671646500,0.3519,94315.0,94311.0,0.2119953]
[1745671646698,0.3499,94315.0,94310.0,0.3608]
[1745671646899,0.3529,94315.0,94292.0,0.0530094]
[1745671647199,0.3608,94309.0,94299.0,0.2120225]
[1745671647405,0.3608,94309.0,94300.0,0.2120203]
[1745671648096,0.5288,94309.0,94296.0,0.2327073]
[1745671648300,0.5288,94309.0,94300.0,0.2120201]
[1745671649002,0.3608,94308.0,94296.0,0.2327073]
[1745671649209,0.3608,94308.0,94299.0,0.1797]
[1745671649506,0.3608,94308.0,94300.0,0.2120204]
[1745671650204,0.5288,94308.0,94300.0,0.2120204]
[1745671650600,0.5298,94308.0,94300.0,0.2120204]
[1745671651110,0.5298,94308.0,94302.0,0.2120166]
[1745671653400,0.5298,94308.0,94304.0,0.2120107]
[1745671653800,0.5298,94308.0,94304.0,0.3893107]
[1745671655108,0.5298,94308.0,94305.0,0.2120091]
[1745671655299,0.5298,94308.0,94304.0,0.1773]
[1745671657900,0.5298,94308.0,94304.0,0.3893102]
[1745671658299,0.5298,94308.0,94306.0,0.2120066]
[1745671658804,0.5298,94308.0,94307.0,0.18460181]
[1745671662212,0.5298,94308.0,94307.0,0.39660721]
[1745671662414,0.5298,94308.0,94307.0,0.18460181]
[1745671663612,0.7153,94308.0,94307.0,0.36330181]
[1745671665508,0.3545,94308.0,94307.0,0.36330181]
[1745671665708,0.7153,94308.0,94307.0,0.36330181]
[1745671666915,0.3545,94308.0,94307.0,0.36330181]
[1745671667117,0.7153,94308.0,94307.0,0.36330181]
[1745671672324,0.7153,94308.0,94307.0,0.18460181]
[1745671673925,0.7153,94308.0,94307.0,0.39660721]
[1745671674417,0.3545,94308.0,94307.0,0.39660721]
[1745671674622,0.7153,94308.0,94307.0,0.39660721]
[1745671675119,0.7153,94308.0,94307.0,0.18460181]
[1745671675914,0.3545,94308.0,94307.0,0.18460181]
[1745671676109,0.7153,94308.0,94307.0,0.18460181]
[1745671677010,0.7153,94308.0,94307.0,0.37700181]
[1745671678115,0.3545,94308.0,94307.0,0.37700181]
[1745671678322,0.7153,94308.0,94307.0,0.37700181]
[1745671679313,0.7153,94308.0,94307.0,0.58900721]
[1745671679822,0.7153,94308.0,94307.0,0.37700181]
[1745671682525,0.7153,94308.0,94307.0,0.18460181]
[1745671682717,0.7153,94308.0,94300.0,0.0530047]
[1745671683022,0.3697,94307.0,94305.0,0.212009]
[1745671683428,0.1823,94306.0,94305.0,0.212009]
[1745671683628,0.1823,94306.0,94291.0,0.1849]
[1745671683825,0.06615027,94301.0,94292.0,0.18162968]
[1745671684122,0.3608,94293.0,94280.0,0.00106066]
[1745671684314,0.3604,94292.0,94285.0,0.21364581]
[1745671684516,0.5413,94292.0,94285.0,0.21364581]
[1745671684714,0.5413,94292.0,94286.0,0.2120524]
[1745671685124,0.5413,94292.0,94285.0,0.00159101]
[1745671685323,0.7093,94292.0,94285.0,0.00159101]
[1745671685623,0.7093,94292.0,94287.0,0.2120487]
[1745671686223,0.7093,94292.0,94286.0,0.001]
[1745671686427,0.7093,94292.0,94285.0,0.00259101]
[1745671687020,0.7093,94292.0,94285.0,0.00159101]
[1745671687227,0.7093,94292.0,94286.0,0.1959]
[1745671689226,0.5413,94292.0,94286.0,0.1959]
[1745671689820,0.5413,94292.0,94286.0,0.001]
[1745671690820,0.5413,94292.0,94280.0,1e-08]
[1745671691018,0.3608,94281.0,94280.0,1e-08]
[1745671692223,0.3618,94281.0,94280.0,1e-08]
[1745671698035,0.001,94281.0,94280.0,1e-08]
[1745671698227,0.3618,94281.0,94280.0,1e-08]
[1745671698634,0.9134,94281.0,94280.0,1e-08]
[1745671708439,0.5526,94281.0,94280.0,1e-08]
[1745671708639,1.2742,94281.0,94280.0,1e-08]
[1745671709639,1.0947,94281.0,94280.0,1e-08]
[1745671710545,1.0947,94281.0,94280.0,0.19500001]
[1745671712949,0.7339,94281.0,94280.0,0.19500001]
[1745671713246,0.547,94281.0,94280.0,0.19500001]
[1745671720650,0.1862,94281.0,94280.0,0.19500001]
[1745671720948,0.547,94281.0,94280.0,0.19500001]
[1745671724251,0.547,94281.0,94280.0,0.36300001]
[1745671725254,0.547,94281.0,94280.0,0.19500001]
[1745671726748,0.1862,94281.0,94280.0,0.19500001]
[1745671726954,0.547,94281.0,94280.0,0.19500001]
[1745671728158,0.547,94281.0,94280.0,0.36300001]
[1745671729552,0.3618,94281.0,94280.0,0.57506611]
[1745671732152,0.3618,94281.0,94280.0,0.36300001]
[1745671732551,0.3618,94281.0,94280.0,0.57506611]
[1745671735453,0.3618,94281.0,94280.0,0.36300001]
[1745671742065,0.3618,94281.0,94280.0,0.16800001]
[1745671743163,0.3618,94281.0,94280.0,1e-08]
[1745671748471,0.001,94281.0,94280.0,1e-08]
[1745671748762,0.3618,94281.0,94280.0,1e-08]
[1745671752560,0.001,94281.0,94280.0,1e-08]
[1745671752762,0.3618,94281.0,94280.0,1e-08]
[1745671753771,0.9434,94281.0,94280.0,1e-08]
[1745671754967,0.5826,94281.0,94280.0,1e-08]
[1745671755165,0.9434,94281.0,94280.0,1e-08]
[1745671759460,0.9434,94281.0,94253.0,1.5]
[1745671759661,0.3608,94262.0,94250.0,0.411261]
[1745671759960,0.9217,94261.0,94250.0,0.001061]
[1745671761060,0.9317,94261.0,94250.0,0.001061]
[1745671761259,0.9317,94261.0,94254.0,0.01156]
[1745671761673,0.9497338,94261.0,94254.0,0.00956]
[1745671761864,0.9517338,94261.0,94254.0,0.00956]
[1745671762266,0.9497338,94261.0,94254.0,0.00956]
[1745671762474,0.9517338,94261.0,94254.0,0.00956]
[1745671764071,0.95979536,94261.0,94254.0,0.00956]
[1745671766383,0.94979536,94261.0,94254.0,0.00956]
[1745671766672,0.94979536,94261.0,94255.0,0.1886]
[1745671766875,0.94979536,94261.0,94254.0,0.00956]
[1745671776980,0.7216,94255.0,94254.0,0.00956]
[1745671778582,0.7236,94255.0,94254.0,0.00956]
[1745671781083,0.7236,94255.0,94254.0,0.17756]
[1745671782883,0.7236,94255.0,94254.0,0.3896846]
[1745671785387,0.3628,94255.0,94254.0,0.3896846]
[1745671785583,0.3628,94255.0,94254.0,0.5863846]
[1745671785778,0.002,94255.0,94254.0,0.5863846]
[1745671785994,0.3628,94255.0,94254.0,0.5863846]
[1745671798896,0.5512,94255.0,94254.0,0.5863846]
[1745671801792,0.5512,94255.0,94254.0,0.3896846]
[1745671809392,0.5512,94255.0,94254.0,0.17756]
[1745671809593,0.5512,94255.0,94254.0,0.3896846]
[1745671818901,0.5512,94255.0,94254.0,0.17756]
[1745671819087,0.5512,94255.0,94254.0,0.00956]
[1745671823110,0.7192,94255.0,94254.0,0.00956]
[1745671824802,1.08,94255.0,94254.0,0.00956]
[1745671826604,0.3584,94255.0,94254.0,0.00956]
[1745671826907,1.08,94255.0,94254.0,0.00956]
[1745671828106,0.912,94255.0,94254.0,0.00956]
[1745671829200,1.08,94255.0,94254.0,0.00956]
[1745671830307,0.912,94255.0,94254.0,0.00956]
[1745671830514,0.1904,94255.0,94254.0,0.00956]
[1745671830710,0.912,94255.0,94254.0,0.00956]
[1745671839711,0.922,94255.0,94235.0,0.5677]
[1745671840016,0.3608,94236.0,94235.0,0.5677]
[1745671840516,0.3608,94236.0,94235.0,0.1824]
[1745671840907,0.3608,94236.0,94231.0,0.00159194]
[1745671841114,0.5411,94235.0,94232.0,0.1824]
[1745671843015,0.5411,94235.0,94232.0,0.3782]
[1745671843409,0.5431,94235.0,94232.0,0.3782]
[1745671846009,0.3652,94235.0,94232.0,0.3782]
[1745671846216,0.1776,94234.0,94232.0,0.3782]
[1745671846717,0.3835,94233.0,94232.0,0.3782]
[1745671849014,1.1051,94233.0,94232.0,0.3782]
[1745671849617,1.1081,94233.0,94232.0,0.3782]
[1745671850921,1.1081,94233.0,94232.0,0.1824]
[1745671852017,1.1081,94233.0,94229.0,0.1965]
[1745671852018,0.9207,94233.0,94210.0,0.4102]
[1745671852218,0.06615027,94230.0,94223.0,0.3662]
[1745671852520,0.3596,94229.0,94224.0,0.1917]
[1745671852720,0.3608,94225.0,94224.0,0.1917]
[1745671852920,0.3608,94225.0,94224.0,0.3737]
[1745671855428,0.3618,94225.0,94224.0,0.3737]
[1745671860121,0.5534,94225.0,94224.0,0.3737]
[1745671861124,0.5534,94225.0,94224.0,0.5417]
[1745671862118,0.5534,94225.0,94224.0,0.3737]
[1745671863821,0.5534,94225.0,94224.0,0.5858922]
[1745671864620,0.5534,94225.0,94224.0,0.3737]
[1745671865122,0.1926,94225.0,94224.0,0.3737]
[1745671865323,0.5534,94225.0,94224.0,0.3737]
[1745671866128,0.5534,94225.0,94224.0,0.5858922]
[1745671868127,0.5534,94225.0,94224.0,0.6920202]
[1745671868128,0.3618,94225.0,94224.0,0.6920202]
[1745671868523,0.3608,94244.0,94224.0,1.621278]
[1745671868724,0.3608,94244.0,94243.0,0.2121494]
[1745671869231,0.3608,94244.0,94243.0,0.3801494]
[1745671869827,0.3608,94244.0,94243.0,0.7652494]
[1745671870921,0.3628,94244.0,94243.0,0.7652494]
[1745671871323,0.3608,94244.0,94243.0,0.7652494]
[1745671871627,0.3618,94244.0,94243.0,0.7652494]
[1745671874121,0.001,94244.0,94243.0,0.7652494]
[1745671878938,0.1819,94247.0,94246.0,0.2121426]
[1745671879238,0.1819,94247.0,94246.0,0.3801426]
[1745671879533,0.3737,94247.0,94246.0,0.3801426]
[1745671880636,0.3747,94247.0,94246.0,0.3801426]
[1745671881241,0.3747,94247.0,94246.0,0.2121426]
[1745671881549,0.1829,94247.0,94246.0,0.2121426]
[1745671881839,0.0052,94248.0,94247.0,0.2121404]
[1745671881840,1e-08,94248.0,94247.0,0.2121404]
[1745671882044,1e-08,94248.0,94247.0,0.7057444]
[1745671882231,1e-08,94248.0,94247.0,1.6542644]
[1745671882536,1e-08,94248.0,94247.0,2.0644644]
[1745671883230,1e-08,94248.0,94247.0,2.07256697]
[1745671883633,1e-08,94248.0,94247.0,2.0644644]
[1745671883832,0.00100001,94248.0,94247.0,2.0644644]
[1745671884334,0.0180338,94261.0,94260.0,0.2121111]
[1745671884642,0.1812,94267.0,94266.0,0.2120976]
[1745671885142,0.1812,94267.0,94266.0,0.3800976]
[1745671885540,0.1812,94267.0,94266.0,0.7681976]
[1745671885740,0.19638773,94267.0,94266.0,0.7681976]
[1745671900947,0.19638773,94267.0,94266.0,0.5722976]
[1745671905345,0.19638773,94267.0,94266.0,0.3800976]
[1745671905647,0.19638773,94267.0,94266.0,0.168]
[1745671905952,0.55718773,94267.0,94252.0,0.1892]
[1745671906146,0.06615027,94262.0,94251.0,0.3608]
[1745671906351,0.3755,94261.0,94252.0,0.0530322]
[1745671906646,0.3755,94261.0,94258.0,0.2121146]
[1745671906837,0.3755,94261.0,94255.0,0.0530306]
[1745671906838,0.3755,94261.0,94259.0,0.2121133]
[1745671907037,0.3755,94261.0,94260.0,0.2121111]
[1745671907643,0.3755,94261.0,94258.0,0.2121144]
[1745671908041,0.3775,94261.0,94258.0,0.2121144]
[1745671908945,0.3755,94261.0,94258.0,0.2121144]
[1745671909141,0.3765,94261.0,94257.0,0.0530292]
[1745671909347,0.3765,94261.0,94259.0,0.2121123]
[1745671910653,0.3765,94261.0,94260.0,0.2121111]
[1745671910954,0.3755,94261.0,94260.0,0.2121111]
[1745671911251,0.3775,94261.0,94260.0,0.2121111]
[1745671925167,0.3775,94261.0,94260.0,0.3801111]
[1745671926063,0.3775,94261.0,94260.0,0.5605111]
[1745671929362,0.1982,94261.0,94260.0,0.5605111]
[1745671931667,0.1972,94261.0,94260.0,0.5605111]
[1745671933669,0.01518773,94267.0,94266.0,0.2120976]
[1745671933869,0.179,94269.0,94268.0,0.2120931]
[1745671934171,0.179,94269.0,94268.0,0.3800931]
[1745671934770,0.179,94269.0,94268.0,0.7511931]
[1745671936768,0.19295441,94269.0,94268.0,0.7511931]
[1745671936963,0.19395441,94269.0,94268.0,0.7511931]
[1745671943466,0.19395441,94269.0,94268.0,1.1119931]
[1745671944174,1e-08,94271.0,94270.0,0.2120886]
[1745671944678,0.3843,94295.0,94294.0,0.2120346]
[1745671945274,0.39224189,94295.0,94294.0,0.3800346]
[1745671945878,0.3608,94312.0,94300.0,0.2120212]
[1745671946071,1e-08,94301.0,94300.0,0.2120212]
[1745671946771,0.3708,94319.0,94307.0,0.2120054]
[1745671946973,0.01455841,94309.0,94307.0,0.5728054]
[1745671947278,1e-08,94308.0,94307.0,0.7408054]
[1745671952473,1e-08,94308.0,94307.0,0.84684139]
[1745671955078,1e-08,94308.0,94307.0,0.7408054]
[1745671955979,1e-08,94308.0,94307.0,0.84684139]
[1745671956174,1e-08,94308.0,94307.0,1.62702139]
[1745671957278,1e-08,94308.0,94307.0,1.38002139]
[1745671957678,1e-08,94308.0,94307.0,2.88002139]
[1745671958077,1e-08,94308.0,94307.0,2.34984139]
[1745671961886,1e-08,94308.0,94307.0,2.76004139]
[1745671962579,1e-08,94308.0,94307.0,2.93954139]
[1745671962980,1e-08,94308.0,94307.0,3.30034139]
[1745671964281,1e-08,94308.0,94307.0,2.58874139]
[1745671964488,1e-08,94308.0,94307.0,3.31034139]
[1745671982015,1e-08,94308.0,94307.0,2.58874139]
[1745671982315,1e-08,94308.0,94307.0,3.31034139]
[1745671983199,1e-08,94308.0,94307.0,3.14234139]
[1745671987102,1e-08,94308.0,94307.0,3.0363054]
[1745671987304,1e-08,94308.0,94307.0,2.8568054]
[1745671987616,1e-08,94308.0,94307.0,1.3468054]
[1745671988304,0.16800001,94308.0,94307.0,1.3468054]
[1745671989308,1e-08,94308.0,94307.0,1.3468054]
[1745671989805,1e-08,94308.0,94307.0,1.3438054]
[1745671990012,1e-08,94308.0,94307.0,1.3448054]
[1745671990413,1e-08,94308.0,94307.0,0.6232054]
[1745671990713,1e-08,94308.0,94307.0,1.3448054]
[1745671991014,0.3818,94314.0,94307.0,1.3448054]
[1745671991214,0.3391266,94314.0,94313.0,0.2119919]
[1745671992108,0.3391266,94314.0,94313.0,0.3799919]
[1745671993216,0.3391266,94314.0,94313.0,0.2119919]
[1745671995214,0.3391266,94314.0,94313.0,0.3991919]
[1745671995709,0.3391266,94314.0,94313.0,0.2119919]
[1745671996110,0.3391266,94314.0,94313.0,1.7119919]
[1745671997011,0.3391266,94314.0,94313.0,2.1221919]
[1745671998213,0.1939,94314.0,94313.0,2.1221919]
[1745671998410,0.1825,94319.0,94318.0,0.2119807]
[1745671998610,0.1825,94319.0,94318.0,0.5727807]
[1745671999306,0.1825,94319.0,94318.0,0.7573807]
[1745672000419,0.1835,94319.0,94318.0,0.7573807]
[1745672001121,0.1835,94319.0,94318.0,1.1181807]
[1745672008123,0.3515,94319.0,94318.0,1.1181807]
[1745672010118,0.1835,94319.0,94318.0,1.1181807]
[1745672011125,0.3515,94319.0,94318.0,1.1181807]
[1745672016031,0.3515,94319.0,94318.0,0.3965807]
[1745672016229,0.3515,94319.0,94318.0,1.1181807]
[1745672018118,0.1835,94319.0,94318.0,1.1181807]
[1745672019230,0.3515,94319.0,94318.0,1.1181807]
[1745672023733,0.3515,94319.0,94318.0,0.3965807]
[1745672023924,0.3515,94319.0,94318.0,1.1181807]
[1745672025226,0.1835,94319.0,94318.0,1.1181807]
[1745672031331,0.1835,94319.0,94318.0,0.3965807]
[1745672031528,0.1835,94319.0,94318.0,1.1181807]
[1745672032240,0.1835,94319.0,94318.0,0.3965807]
[1745672032440,0.1835,94319.0,94318.0,1.1181807]
[1745672032627,0.1835,94319.0,94318.0,0.3965807]
[1745672032832,0.1835,94319.0,94318.0,1.1181807]
[1745672033532,0.1835,94319.0,94318.0,0.3965807]
[1745672033733,0.1835,94319.0,94318.0,1.1181807]
[1745672049344,0.28952401,94319.0,94318.0,0.9335807]
[1745672049541,0.28952401,94319.0,94318.0,0.7216]
[1745672049746,0.28952401,94319.0,94318.0,0.5727807]
[1745672050147,0.45752401,94319.0,94318.0,0.5727807]
[1745672060156,0.3515,94319.0,94318.0,0.5727807]
[1745672062456,0.45752401,94319.0,94318.0,0.5727807]
[1745672064358,0.45752401,94319.0,94318.0,0.2119807]
[1745672068170,0.3515,94319.0,94318.0,0.2119807]
[1745672073574,0.3515,94319.0,94318.0,0.4070807]
[1745672109190,0.1835,94319.0,94318.0,0.4070807]
[1745672110202,0.3515,94319.0,94318.0,0.4070807]
[1745672112100,0.001,94319.0,94318.0,0.4070807]
[1745672122217,0.169,94319.0,94318.0,0.1951]
[1745672122512,0.169,94319.0,94318.0,0.4070807]
[1745672127117,0.001,94319.0,94318.0,0.4070807]
[1745672129221,0.169,94319.0,94318.0,0.4070807]
[1745672131224,0.001,94319.0,94318.0,0.4070807]
[1745672133121,0.169,94319.0,94318.0,0.4070807]
[1745672152340,0.169,94319.0,94318.0,0.5862807]
[1745672153142,0.001,94319.0,94318.0,0.5862807]
[1745672170647,0.3841,94335.0,94318.0,0.480324]
[1745672170843,0.02516924,94336.0,94318.0,0.480324]
[1745672170844,0.02516924,94336.0,94335.0,0.2119425]
[1745672171143,0.5692,94349.0,94337.0,0.211938]
[1745672171844,0.5692,94349.0,94337.0,0.590138]
[1745672172039,0.02305317,94338.0,94337.0,0.590138]
[1745672172242,0.0052,94338.0,94337.0,0.758138]
[1745672173348,0.02844779,94338.0,94337.0,0.590138]
[1745672173532,0.0102,94338.0,94337.0,0.590138]
[1745672174334,0.0052,94338.0,94337.0,0.590138]
[1745672174644,0.0092,94338.0,94337.0,0.590138]
[1745672174943,0.02787348,94338.0,94337.0,0.590138]
[1745672175134,0.0092,94338.0,94337.0,0.590138]
[1745672176943,0.2017,94338.0,94337.0,0.590138]
[1745672178246,0.22028539,94338.0,94337.0,0.590138]
[1745672191158,0.22028539,94338.0,94337.0,0.399538]
[1745672191456,0.40058539,94338.0,94337.0,0.399538]
[1745672199964,0.40058539,94338.0,94337.0,0.1876]
[1745672200156,0.56858539,94338.0,94332.0,0.2119485]
[1745672200464,0.56858539,94338.0,94333.0,0.1921]
[1745672200966,0.56858539,94338.0,94335.0,0.2119417]
[1745672201154,0.56858539,94338.0,94336.0,0.1774]
[1745672201970,0.56458539,94338.0,94336.0,0.1774]
[1745672202263,0.56758539,94338.0,94336.0,0.3893396]
[1745672202564,0.56458539,94338.0,94336.0,0.3893396]
[1745672202763,0.56858539,94338.0,94336.0,0.3893396]
[1745672202965,0.56858539,94338.0,94336.0,0.1774]
[1745672213271,0.56858539,94338.0,94337.0,0.211938]
[1745672214173,0.40058539,94338.0,94337.0,0.211938]
[1745672215062,0.56858539,94338.0,94337.0,0.211938]
[1745672220375,0.56858539,94338.0,94337.0,0.396038]
[1745672222176,0.40058539,94338.0,94337.0,0.396038]
[1745672225177,0.56858539,94338.0,94337.0,0.396038]
[1745672226274,0.40058539,94338.0,94337.0,0.396038]
[1745672231773,0.02778539,94338.0,94337.0,0.396038]
[1745672231977,0.02778539,94338.0,94337.0,0.581338]
[1745672233069,0.02778539,94338.0,94337.0,0.749338]
[1745672238277,0.02778539,94338.0,94337.0,0.581338]
[1745672243082,0.02778539,94338.0,94337.0,0.749338]
[1745672244173,0.02778539,94338.0,94337.0,0.581338]
[1745672250187,0.3608,94345.0,94344.0,0.2119223]
[1745672250376,0.3803,94356.0,94355.0,0.2118976]
[1745672251374,0.3803,94356.0,94355.0,0.4045976]
[1745672251779,0.39717409,94356.0,94355.0,0.4045976]
[1745672252389,0.39917409,94356.0,94355.0,0.4045976]
[1745672253387,0.407079,94356.0,94355.0,0.4045976]
[1745672254592,0.584879,94356.0,94355.0,0.4045976]
[1745672256478,0.216279,94356.0,94355.0,0.4045976]
[1745672256678,0.026779,94356.0,94355.0,0.4045976]
[1745672257486,0.01887409,94356.0,94355.0,0.4045976]
[1745672257882,0.3773,94365.0,94360.0,0.2118863]
[1745672258089,0.3608,94375.0,94367.0,0.2118706]
[1745672258282,0.01296768,94368.0,94367.0,0.2118706]
[1745672258481,0.0052,94368.0,94367.0,0.2118706]
[1745672259089,0.0052,94368.0,94367.0,0.3899706]
[1745672260190,0.02201519,94368.0,94367.0,0.5579706]
[1745672260489,0.02401519,94368.0,94367.0,0.5579706]
[1745672261291,0.02401519,94368.0,94367.0,0.7401706]
[1745672262183,0.03180435,94368.0,94367.0,0.7401706]
[1745672262397,0.0072,94368.0,94367.0,0.7401706]
[1745672262796,0.02404866,94368.0,94367.0,0.7401706]
[1745672266699,0.0321365,94368.0,94367.0,0.7401706]
[1745672270001,0.02404866,94368.0,94367.0,0.7401706]
[1745672270301,0.02404866,94368.0,94367.0,0.5721706]
[1745672272300,0.21774866,94368.0,94367.0,0.5721706]
[1745672272500,0.02404866,94368.0,94367.0,0.5721706]
[1745672277305,0.0072,94368.0,94367.0,0.5721706]
[1745672277517,0.0052,94368.0,94367.0,0.5721706]
[1745672278214,0.0052,94368.0,94367.0,0.7401706]
[1745672278711,0.0072,94368.0,94367.0,0.7401706]
[1745672281220,0.0072,94368.0,94367.0,0.5721706]
[1745672281718,0.1928,94368.0,94367.0,0.5721706]
[1745672287029,0.0072,94368.0,94367.0,0.5721706]
[1745672288323,0.0072,94368.0,94367.0,0.7401706]
[1745672289130,0.0072,94368.0,94367.0,0.5721706]
[1745672290926,0.1926,94368.0,94367.0,0.5721706]
[1745672292628,0.3732,94368.0,94367.0,0.1781]
[1745672293134,0.5412,94368.0,94362.0,0.2118811]
[1745672293321,0.5412,94368.0,94363.0,0.188]
[1745672294130,0.5392,94368.0,94363.0,0.188]
[1745672294322,0.5412,94368.0,94363.0,0.188]
[1745672295727,0.5412,94368.0,94363.0,0.3998793]
[1745672296530,0.5412,94368.0,94363.0,0.188]
[1745672297226,0.5412,94368.0,94363.0,0.3998795]
[1745672297623,0.5412,94368.0,94363.0,0.188]
[1745672297829,0.5412,94368.0,94363.0,0.3998796]
[1745672298930,0.5412,94368.0,94363.0,0.188]
[1745672299232,0.5412,94368.0,94364.0,0.2118769]
[1745672299632,0.5412,94368.0,94365.0,0.189]
[1745672303536,0.5412,94368.0,94366.0,0.2118723]
[1745672303928,0.5412,94368.0,94365.0,0.189]
[1745672304135,0.5412,94368.0,94365.0,0.4008748]
[1745672305543,0.5412,94368.0,94366.0,0.2118716]
[1745672305945,0.5412,94368.0,94367.0,0.1779]
[1745672306544,0.5412,94368.0,94367.0,0.3897706]
[1745672307145,0.5412,94368.0,94367.0,0.1779]
[1745672310149,0.5412,94368.0,94367.0,0.3897706]
[1745672311545,0.3606,94368.0,94367.0,0.1779]
[1745672311743,0.5301,94368.0,94367.0,0.1779]
[1745672312042,0.5301,94368.0,94367.0,0.3897706]
[1745672321555,0.3606,94368.0,94367.0,0.3897706]
[1745672321754,0.3606,94368.0,94367.0,0.5696706]